Cogmind - Beta 14 @@@ ROGUE MODE // 2024.09.16 @ 22:09:58 Player: Dull Result: Destroyed by L-41 Fighter with Axe Performance ------------- Evolutions (0) 0 Regions Visited (4) 800 Robots Destroyed (44) 220 Value Destroyed (1040) 1040 Prototype IDs (19) 380 Alien Tech Used (0) 0 Bonus (19) 19 TOTAL SCORE: 2459 Bonus ------- Follower Combat Kills 136 Friendly Fire -117 Cogmind --------- Core Integrity 0/250 Matter 274/300 Energy 265/265 System Corruption 0% Temperature Cool (84) Movement Treading (160) Location -7/Recycling Parts ------- > --- POWER (1) -------- Improved Ion Engine > --- PROPULSION (2) --- Light Treads Light Treads > --- UTILITY (2) ------ Large Storage Unit Core Shielding > --- WEAPON (2) ------- Subdweller Laser > --- INVENTORY (15) --- Improved Ion Engine Arachnoskeleton Improved Heat Sink Improved Heat Sink Makeshift Light Armor Plating Makeshift Light Armor Plating Decoy Drone Bay V3-11A's Pendant Beamcaster Rocket Launcher Subdweller Shrapnel Launcher Makeshift Spear Peak State ------------ > --- POWER ------------ Improved Ion Engine > --- PROPULSION ------- Light Treads Spiked Treads > --- UTILITY ---------- Large Storage Unit Makeshift Light Armor Plating > --- WEAPON ----------- Beamcaster Heavy Assault Rifle > --- INVENTORY -------- Improved Ion Engine Light Treads Arachnoskeleton Improved Heat Sink Improved Heat Sink Core Shielding Makeshift Light Armor Plating Decoy Drone Bay Rocket Launcher Makeshift Spear [Rating: 22] Favorites ----------- Power Improved Ion Engine Engine Improved Ion Engine Propulsion Light Treads Treads Light Treads Leg Aluminum Leg Utility Large Storage Unit Device V3-11A's Pendant Storage Large Storage Unit Protection Makeshift Light Armor Plating Weapon Heavy Assault Rifle Energy Gun Subdweller Laser Energy Cannon Subdweller Beam Cannon Ballistic Gun Heavy Assault Rifle Ballistic Cannon Light Cannon Launcher Rocket Launcher Build | -11 -10 -10 -10 -7 ------- Run | Yrd Mat Min Sub Rec Slots Evolved . | . . . . . Power . | . . . . . Propulsion . | . . . . . Utility . | . . . . . Weapon . | . . . . . Parts Attached 46 | 1 12 . 30 3 Power 4 | . 2 . 2 . Engine 4 | . 2 . 2 . Core . | . . . . . Reactor . | . . . . . Propulsion 8 | . 4 . 4 . Treads 8 | . 4 . 4 . Leg . | . . . . . Wheel . | . . . . . Hover . | . . . . . Flight . | . . . . . Utility 11 | 1 3 . 6 1 Device 2 | 1 . . 1 . Storage 1 | . 1 . . . Processor . | . . . . . Hackware . | . . . . . Protection 8 | . 2 . 5 1 Artifact . | . . . . . Weapon 23 | . 3 . 18 2 Energy Gun 5 | . 1 . 4 . Energy Cannon 1 | . . . 1 . Ballistic Gun 9 | . 1 . 8 . Ballistic Cannon 3 | . 1 . . 2 Launcher 5 | . . . 5 . Special Weapon . | . . . . . Impact Weapon . | . . . . . Slashing Weapon . | . . . . . Piercing Weapon . | . . . . . Special Melee Weapon . | . . . . . Unidentified Prototypes 1 | . . . 1 . Parts Lost 1 | . . . 1 . Power . | . . . . . Propulsion 1 | . . . 1 . Utility . | . . . . . Weapon . | . . . . . Highest Loss Streak 1 | . . . 1 . To Critical Strikes . | . . . . . Average Slot Usage (%) 99 | . 99 100 99 99 Engine 14 | . 14 14 14 14 Treads 27 | . 27 28 27 28 Device 2 | . 2 . 1 6 Storage 14 | . 14 14 14 14 Protection 11 | . 11 14 12 7 Energy Gun 9 | . 1 14 10 14 Energy Cannon 1 | . . . 2 . Ballistic Gun 14 | . 14 14 14 13 Ballistic Cannon 2 | . 12 . . . Peak Build Rating 22 | 9 12 13 22 18 Average Rating 15 | 7 9 12 17 16 On Entrance 11 | 6 9 12 13 18 Naked Turns . | . . . . . Heaviest Build 43 | 13 36 36 43 38 Greatest Support 40 | 20 40 40 40 40 Greatest Overweight (x) 1 | . . . 1 . Average Overweight (x) . | . . . . . Largest Inventory Capacity 15 | 8 15 15 15 15 Average Capacity 14 | 8 11 15 15 15 Most Carried 15 | 6 15 15 15 15 Average Carried 14 | 6 10 14 14 15 Final Capacity 15 | 8 15 15 15 15 Final Carried 15 | 6 15 15 15 15 Class Distribution -------------------- 83% | Mutant 16% | Derelict-Mutant Dominant Class ---------------- Mutant | -10/Materials Mutant | -10/Mines Mutant | -10/Subcaves Mutant | -7/Recycling Resources | -11 -10 -10 -10 -7 ----------- Run | Yrd Mat Min Sub Rec Matter Collected 1238 | 199 407 97 519 16 Remotely . | . . . . . Salvage Created 1211 | 13 493 104 533 68 Parts 89 | 3 34 7 41 4 Haulers Intercepted 2 | . 2 . . . Recyclers Shooed . | . . . . . Parts Field Recycled . | . . . . . Retrieved Matter . | . . . . . Parts Self-Destructed 21 | . . . 21 . Prevented . | . . . . . Kills | -11 -10 -10 -10 -7 ------- Run | Yrd Mat Min Sub Rec Combat Hostiles Destroyed 34 | . 15 3 15 1 Guns 19 | . 4 3 11 1 Cannons 11 | . 11 . . . AOE 4 | . . . 4 . Classes Destroyed 10 | 1 5 1 2 1 Worker 1 | . . 1 . . Tunneler 1 | 1 . . . . Hauler 2 | . 2 . . . Operator 1 | . 1 . . . Turret 2 | . . . 2 . Watcher 2 | . 2 . . . Swarmer 14 | . 6 2 6 . Grunt 11 | . 9 1 1 . Sentry 1 | . . . . 1 Subdweller 9 | . . . 9 . Best Kill Streak 9 | 1 9 2 5 1 Combat Bots Only 9 | . 9 2 4 1 Max Kills in Single Turn 4 | 1 1 1 4 1 Gunslinging . | . . . . . Exploded 4 | . . . 4 . Melee . | . . . . . Uniques/NPCs Destroyed . | . . . . . Combat | -11 -10 -10 -10 -7 -------- Run | Yrd Mat Min Sub Rec Hostile Shots Fired 174 | . 61 8 84 21 Missed 57 | . 15 2 34 6 Damage Taken 1398 | . 456 52 742 148 Core 270 | . 53 34 129 54 Absorbed by Shields . | . . . . . Redirected to Shielding 7 | . . . . 7 Regen/Repaired (Parts) 92 | . 92 . . . Core Remaining (%) 100 | 100 . . . . Volleys Fired 112 | 1 50 9 47 5 Largest 2 | 2 2 2 2 2 Hottest 110 | 40 88 88 110 108 Shots Fired 192 | 2 98 11 74 7 Gun 122 | 2 49 11 54 6 Cannon 59 | . 49 . 9 1 Launcher 11 | . . . 11 . Special . | . . . . . Kinetic 144 | 2 97 9 33 3 Thermal 41 | . 1 2 34 4 Explosive 7 | . . . 7 . Electromagnetic . | . . . . . Robot Hit Streak 20 | 1 8 5 20 9 Robot Miss Streak 3 | . 3 3 2 1 Penetration Max . | . . . . . Secondary Targets . | . . . . . Shots Hit Robots 115 | 1 54 9 45 6 Core Hits 65 | 1 24 9 28 3 Critical Kills 1 | . . 1 . . Critical Parts Destroyed 1 | . . . 1 . Critical Strikes 4 | . 1 1 2 . Burn 1 | . . . 1 . Destroy 2 | . . 1 1 . Blast 1 | . 1 . . . Melee Attacks . | . . . . . Impact . | . . . . . Slashing . | . . . . . Piercing . | . . . . . Sneak Attacks . | . . . . . Combat Hostiles . | . . . . . Follow-up Attacks . | . . . . . Damage Inflicted 2316 | 11 882 131 1180 112 Guns 1419 | 11 413 131 777 87 Cannons 603 | . 469 . 109 25 Explosions 294 | . . . 294 . Melee . | . . . . . Ramming . | . . . . . Kinetic 1347 | 11 867 102 316 51 Thermal 675 | . 15 29 570 61 Explosive 294 | . . . 294 . Electromagnetic . | . . . . . Impact . | . . . . . Slashing . | . . . . . Piercing . | . . . . . Highest Corruption . | . . . . . Average Corruption . | . . . . . Corruption Purged . | . . . . . Corruption Blocked . | . . . . . Overload Shots . | . . . . . Overflow Damage 37 | . 5 . 32 . Projectiles 37 | . 5 . 32 . Explosions . | . . . . . Melee . | . . . . . Knockbacks 5 | . 4 . . 1 Impact . | . . . . . Kinetic 5 | . 4 . . 1 Secondary . | . . . . . Self-Inflicted Damage 47 | . . . 47 . Shots 2 | . . . 2 . Rammed 1 | . 1 . . . Targets Rammed 1 | . 1 . . . Kicked . | . . . . . Crushed . | . . . . . Highest Temperature 84 | . 60 45 24 84 Average Temperature 19 | . 19 22 6 43 Received Heat Transfer 351 | . 159 6 168 18 Siege Activations . | . . . . . Robots Corrupted . | . . . . . Combat Hostiles . | . . . . . Parts Fried . | . . . . . Impact Corruptions . | . . . . . Robots Melted . | . . . . . Combat Hostiles . | . . . . . Parts Melted 2 | . . . 2 . Heat Transferred 909 | . 15 40 791 63 Parts Sabotaged . | . . . . . Parts Stolen . | . . . . . Parts Stripped . | . . . . . Power Chain Reactions . | . . . . . Alert | -11 -10 -10 -10 -7 ------- Run | Yrd Mat Min Sub Rec Peak Influence 303 | 5 303 145 . 40 Initial 10 | . 3 10 . . Average 66 | 3 117 39 . 11 Maximum Alert Level 1 | . 1 . . . Low Security (%) 94 | 100 87 100 . 100 Level 1 5 | . 12 . . . Level 2 . | . . . . . Level 3 . | . . . . . Level 4 . | . . . . . Level 5 . | . . . . . High Security . | . . . . . Max Security . | . . . . . Squads Dispatched 4 | . 4 . . . Investigation 3 | . 3 . . . Extermination . | . . . . . Reinforcement 1 | . 1 . . . Assault . | . . . . . Garrison . | . . . . . Intercept . | . . . . . Searches Triggered . | . . . . . Construction Impeded . | . . . . . Haulers Reinforced . | . . . . . Active Scanning Responses . | . . . . . Cargo Convoy Interrupts . | . . . . . Stealth | -11 -10 -10 -10 -7 --------- Run | Yrd Mat Min Sub Rec Distress Signals . | . . . . . Communications Jammed . | . . . . . Distress Signals . | . . . . . Times Spotted 59 | . 26 7 21 5 Peak Tracking Total 6 | . 4 3 6 4 Tactical Retreats 1 | . . . 1 . Traps | -11 -10 -10 -10 -7 ------- Run | Yrd Mat Min Sub Rec Traps Triggered 3 | . 3 . . . Indirectly . | . . . . . Trap Hack Attempts . | . . . . . Triggered . | . . . . . Disarmed . | . . . . . Reprogrammed . | . . . . . Reused . | . . . . . Traps Extracted . | . . . . . Installed . | . . . . . Triggered . | . . . . . Machines | -11 -10 -10 -10 -7 ---------- Run | Yrd Mat Min Sub Rec Machines Disabled 4 | . . . 4 . Max in Single Turn 3 | . . . 3 . Machines Repaired . | . . . . . Machines Dismantled . | . . . . . Machines Sabotaged . | . . . . . Overloaded Fab Kills . | . . . . . Hacking | -11 -10 -10 -10 -7 --------- Run | Yrd Mat Min Sub Rec Machines Accessed 15 | . 9 1 2 3 Terminals 9 | . 6 . . 3 Fabricators . | . . . . . Repair Stations 1 | . 1 . . . Recycling Units 2 | . 2 . . . Scanalyzers . | . . . . . Garrison Access . | . . . . . Total Hacks 40 | . 22 1 11 6 Successful 25 | . 10 1 11 3 Failed 15 | . 12 . . 3 Catastrophic 2 | . 1 . . 1 Database Lockouts . | . . . . . Manual 15 | . 15 . . . Terminals 22 | . 16 . . 6 Fabricators . | . . . . . Repair Stations 2 | . 2 . . . Recycling Units 4 | . 4 . . . Scanalyzers . | . . . . . Garrison Access . | . . . . . Terminal Hacks 23 | . 8 1 11 3 Record 10 | . . . 10 . Part Schematic 2 | . 2 . . . Robot Analysis 5 | . 4 . . 1 Prototype ID Bank 3 | . 2 . . 1 Open Door 1 | . . 1 . . Unreport Threat 1 | . . . . 1 Derelict Proto ID Bank 1 | . . . 1 . Fabricator Hacks . | . . . . . Repair Station Hacks 2 | . 2 . . . Scan Component 1 | . 1 . . . Repair 1 | . 1 . . . Recycling Unit Hacks . | . . . . . Scanalyzer . | . . . . . Garrison Access Hacks . | . . . . . Unauthorized Hacks . | . . . . . Terminals . | . . . . . Fabricators . | . . . . . Repair Stations . | . . . . . Recycling Units . | . . . . . Scanalyzers . | . . . . . Garrison Access . | . . . . . Data Cores Recovered . | . . . . . Used . | . . . . . Hacking Detections 8 | . 6 . . 2 Full Trace Events . | . . . . . Feedback Events . | . . . . . Feedback Blocked . | . . . . . Robot Schematics Acquired . | . . . . . Robots Built . | . . . . . Authchips . | . . . . . Time . | . . . . . Total Robot Build Rating . | . . . . . Part Schematics Acquired 2 | . 2 . . . Parts Built . | . . . . . Authchips . | . . . . . Time . | . . . . . Total Part Build Rating . | . . . . . Parts Repaired 1 | . 1 . . . Time 26 | . 26 . . . Parts Recycled . | . . . . . Recycled Matter . | . . . . . Retrieved Matter . | . . . . . Retrieved Components . | . . . . . Parts Scanalyzed . | . . . . . Part Schematics Acquired . | . . . . . Parts Damaged . | . . . . . Bothacking | -11 -10 -10 -10 -7 ------------ Run | Yrd Mat Min Sub Rec Used RIF Installer . | . . . . . Robots Hacked . | . . . . . Non-combat . | . . . . . Combat . | . . . . . Robot Hacks Applied . | . . . . . Relay Couplers Released . | . . . . . Fabnet Peak Effective % . | . . . . . Robots Rewired . | . . . . . Allies Hacked . | . . . . . Hacks Repelled . | . . . . . Allies | -11 -10 -10 -10 -7 -------- Run | Yrd Mat Min Sub Rec Total Allies 8 | . . 6 2 . Largest Group 6 | . . 6 5 2 Highest-Rated Group 112 | . . 112 104 38 Highest-Rated Ally 31 | . . 31 31 19 Total Orders . | . . . . . Ally Attacks 51 | . . 13 35 3 Total Damage 650 | . . 133 455 62 Kills 7 | . . 4 3 . Allies Corrupted . | . . . . . Allies Melted . | . . . . . Intel | -11 -10 -10 -10 -7 ------- Run | Yrd Mat Min Sub Rec Robot Analysis Total 5 | . 4 . . 1 Derelict Logs Recovered 3 | . . 2 1 . Drone Launches . | . . . . . Drone Recoveries . | . . . . . Exploration | -11 -10 -10 -10 -7 ------------- Run | Yrd Mat Min Sub Rec Turns Passed 8602 | 16 1610 1560 4720 696 Spaces Moved 4623 | 10 831 760 2623 399 Core . | . . . . . Treads 4601 | . 819 760 2623 399 Legs 22 | 10 12 . . . Wheels . | . . . . . Hover . | . . . . . Flight . | . . . . . Fastest Speed 120 | 120 120 160 160 160 Average Speed 166 | 120 159 160 171 160 Slowest Speed 250 | 120 160 160 250 160 Overloaded Moves . | . . . . . Propulsion Burnouts . | . . . . . Robots Hopped . | . . . . . Cave-ins Triggered . | . . . . . Exploration Rate (%) 75 | 3 99 100 96 79 Regions Visited 4 Branch Regions 3 Pre-discovered Areas 4 | . . 2 2 . Known Exits Taken . | . . . . . Unknown Exits Taken 4 | 1 1 1 1 . Scrap Searched 13 | . . 1 12 . Spaces Dug 11 | . . . 11 . Terrain Destroyed 113 | . . . 113 . Melee . | . . . . . Projectile 1 | . . . 1 . AOE 112 | . . . 112 . Terrain Rammed . | . . . . . Walls Destroyed . | . . . . . Machines Disabled . | . . . . . Actions | -11 -10 -10 -10 -7 --------- Run | Yrd Mat Min Sub Rec Total 5353 | 11 1022 1095 2776 449 Wait 505 | . 93 322 49 41 Move 4619 | 9 830 759 2622 399 Hop . | . . . . . Pick Up 32 | . 20 2 10 . Fast Attach 3 | 1 2 . . . Attach 4 | . . . 4 . Detach . | . . . . . Swap 39 | . 10 . 26 3 Drop 38 | . 16 3 18 1 Fire 112 | 1 50 9 47 5 Melee . | . . . . . Ram . | . . . . . Kick . | . . . . . Crush 1 | . 1 . . . Escape Stasis . | . . . . . Rewire . | . . . . . Trap . | . . . . . Miscellaneous . | . . . . . Route ------- -11/Scrapyard -10/Materials (discovered 4 exits: [*Mat x3] / *Min) -10/Mines (discovered 3 exits: [*Mat x2] / *Sub) -10/Subcaves (discovered 3 exits: [*Mat x2] / *Rec) -7/Recycling History --------- Turn | Location | Event 1 | -11/Scrapyard | Discovered new exit (range 3) 17 | -11/Scrapyard | Entered Materials 300 | -10/Materials | Build established: Mutant 372 | -10/Materials | Discovered new exit (range 12) 622 | -10/Materials | Discovered new exit (range 16) 653 | -10/Materials | Destroyed 9 combat bots 678 | -10/Materials | Repaired Lgt. Treads 876 | -10/Materials | Discovered new exit (range 12) 1258 | -10/Materials | Discovered new exit (range 11) 1627 | -10/Materials | Entered Mines 1658 | -10/Mines | Escorted by a lone wolf Derelict 1678 | -10/Mines | Learned location of Storage (-7) 1864 | -10/Mines | Found the Drone Emporium 1880 | -10/Mines | Found Prototype Device 2204 | -10/Mines | Discovered new exit (range 13) 2561 | -10/Mines | Assisted by bots powering up and referring to "LRC-V3" 2627 | -10/Mines | Learned Materials terminal intel 2712 | -10/Mines | Discovered new exit (range 8) 2718 | -10/Mines | Received a Rocket Launcher from a helpful Derelict 3169 | -10/Mines | Discovered new exit (range 4) 3187 | -10/Mines | Entered Subcaves 3187 | -10/Subcaves | Accompanied by 5 allies 3192 | -10/Subcaves | Led the pair of lost Derelicts to an unsafe place 3349 | -10/Subcaves | Learned location of Zion (-7) 3349 | -10/Subcaves | Met a Zionite searching for "candidates" 3390 | -10/Subcaves | Lost 3 allies 3897 | -10/Subcaves | Build established: Derelict-Mutant 3965 | -10/Subcaves | Core integrity fell below 50% 3968 | -10/Subcaves | Discovered new exit (range 16) 4867 | -10/Subcaves | Visited Clippyterm 4872 | -10/Subcaves | Learned Factory fabricator intel 4934 | -10/Subcaves | Ambushed by Subdwellers from Twisted Machinery 5009 | -10/Subcaves | Shifting Twisted Machinery released Sub. Machine Gun 5022 | -10/Subcaves | Shifting Twisted Machinery released Sub. Machine Gun 5266 | -10/Subcaves | Discovered new exit (range 15) 5332 | -10/Subcaves | Build established: Mutant 5454 | -10/Subcaves | A swath of the cavern ceiling suddenly collapsed 5633 | -10/Subcaves | Visited 4L-MR0's lab 5695 | -10/Subcaves | Found Arachnoskeleton 5991 | -10/Subcaves | Core integrity fell below 20% 6199 | -10/Subcaves | Shifting Twisted Machinery released Sub. Shrapnel Launcher 6247 | -10/Subcaves | Shifting Twisted Machinery released Mak. Light Armor Plating 7096 | -10/Subcaves | Discovered new exit (range 5) 7266 | -10/Subcaves | Visited triangular shrine 7275 | -10/Subcaves | Found Prototype Device 7275 | -10/Subcaves | Identified V3-11A's Pendant 7280 | -10/Subcaves | Befriended Subdweller 7410 | -10/Subcaves | Befriended Subdweller 7907 | -10/Subcaves | Entered Recycling 7907 | -7/Recycling | Accompanied by 2 allies 8355 | -7/Recycling | Scanned before Scraplab entrance 8603 | -7/Recycling | Destroyed by L-41 Fighter with Axe Last Messages --------------- and yours. 08361_ The floor rises up to form a wall. 08374_ The wall retracts into the floor. 08377_ The floor rises up to form a wall. 08416_ Connecting with Terminal... 08531_ Connecting with Recycling Unit... 08566_ Acquired Adv. Assault Cannon. 08569_ Dropped Adv. Assault Cannon. 08574_ R-06 Scavenger collects Hvy. Assault Rifle. 08575_ R-06 Scavenger collects Adv. Assault Cannon. 08594_ P-60 Hacker springs to life. 08594_ L-41 Fighter springs to life. 08594_ U-05 Engineer destroyed. 08595_ G-47 Trooper springs to life. 08596_ R-06 Scavenger collects Wheel. 08597_ L-41 Fighter knocked back. 08599_ Adv. Assault Cannon severed. 08599_ R-06 Scavenger collects Structural Scanner. 08602_ Sub. Laser shoots sparks and powers down. 08603_ R-06 Scavenger collects Corrupted Lgt. Ion Engine. Map ----- +----------------------------------------------------+ | ????????????????????????????????????? | | #???????????????????????????????????????????? | | +###+####????????????????????????????????????????? | | #????????????????????????????????????????? | | "" """ ###??????????????????????????????????????? | | "" """ ""#??????????????????????????????????????? | | "" """ ""#??????????????????????????????????????? | | T T"#??????????????????????????????????????? | | "" """ ""#??????????????????????????????????????? | | "" """ ""#??????????????????????????????????????? | | "" """ ###??????????????????????????????????????? | | #????????????????????????????????????????? | | ###"T"###????????????????????????????????????????? | | ??#"""#??????????????????????????????????????????? | | ?##########?????????##########???????????????????? | | ?# #?????????# #???????????????????? | | ?# #?????????# ! #???????????????????? | | ?# #?????????# [#???????????????????? | | ?# "" #?????????# %#???????????????????? | | ?# "" #?????????# =! +???????????????????? | | ?# Y" #?????????# [ g#???????????????????? | | ?# "" #?????????# ! ! #???????????????????? | | ?# "" #?????#####? #???????????????????? | | ?# #?????#]] #??? %????????????????????? | | ######+##########]] ######l### #?????????????????? | | r r r@|% p #?????????????????? | | r r ! r +?????????????????? | | #?????????????????? | | ######+#########+########### #?????????????????? | | #?# =%/ #??? #?????????????????? | | #?# #??? #?????????????????? | | #?# #???? #?????????????????? | | #?# =! #???? #?????????????????? | | ## #???? #?????????????????? | | ### #????? #?????????????????? | | #############? ! #????? #?????????????????? | | ??????????????# / ?????#?????????????????? | | ############??### #########??????????????????????? | | #?????##??????????? ??????????????????? | | #????????????????? ??????????????????? | | #????????????????? ??????????????????? | | #????????????????? ??????????????????? | | #????????????????? ???##?????????????? | | #????????????????? ???# ######???????? | | #?????????????????# #??# #???????? | | #?????????????????# #??# #???????? | | #?????????????????# #??# #???????? | | #???############### #??# #???????? | | #???# ## #??# #???????? | | #???# ## #??# #???????? | +----------------------------------------------------+ Best States ------------- Heat Dissipation 25 Energy Generation 15 Energy Capacity 265 Matter Stores 300 Matter Capacity 300 Sight Range 16 Terrain Scan Range 16 Terrain Scan Density 10 Armor Coverage 150 Core Shielding 20 Evasion (%) 45 Recoil Reduction 2 Item Schematics ----------------- Huge Storage Unit | -10/Materials | Hacked Lrg. Storage Unit | -10/Materials | Hacked Robot Schematics ------------------ None Fabricated ------------ Nothing Alien Tech Used ----------------- None Achievements -------------- None Challenges ------------ None Game ------ Seed LatentFluxWand Manual? 0 Play Time 00:36:35 Cumulative 93.6 hours Start 2024.09.16 @ 21:31:43 End 2024.09.16 @ 22:09:58 Sessions 1 Manual Loads 0 Difficulty Rogue Special Mode None Game No. 128 Rogue 128 Adventurer 0 Explorer 0 Win Type - Total 1 Types 1/0/0/0/0/0/0/0/0 Lore% 20 Gallery% 56 Achievement% 44 Wizard Run 0 Options --------- Layout 0 ASCII 0 Keyboard 0 Movement Mouse Keybinds 1 Fullscreen 1 Font 18/TerminusBold Map View 76x50 Zoom Use 0% Tactical HUD 1 Map Filters NONE Filters NONE Steam 1 RUN: eb275f8a-6c59-424f-89a1-4e161c9c1a0d